Cogmind - Beta 16.1 @@@ ROGUE MODE // 2026.02.21 @ 19:51:04 Player: shockman27 Result: Destroyed by D-53 Grenadier with Mini Grenade Launcher Performance ------------- Evolutions (0) 0 Regions Visited (2) 400 Robots Destroyed (31) 155 Value Destroyed (562) 562 Prototype IDs (0) 0 Alien Tech Used (0) 0 Bonus (0) 0 TOTAL SCORE: 1117 Bonus ------- None Cogmind --------- Core Integrity 0/250 Matter 208/300 Energy 248/250 System Corruption 0% Temperature Cool (41) Movement Rolling (155) Ox5 Location -10/Mines Parts ------- > --- POWER (1) -------- Ion Engine > --- PROPULSION (2) --- Light Treads Wheel > --- UTILITY (2) ------ High-capacity Storage Unit Hardened Light Armor Plating > --- WEAPON (2) ------- Assault Rifle Light Assault Rifle > --- INVENTORY (20) --- Ion Engine Light Treads Light Treads Large Matter Pod (150) Structural Scanner Sensor Array Signal Interpreter Seismic Detector Seismic Detector Hardened Light Armor Plating Hardened Light Armor Plating Hacking Suite Hacking Suite Spread Laser Spread Laser Mini Grenade Launcher Mini Grenade Launcher Mace Peak State ------------ > --- POWER ------------ Ion Engine > --- PROPULSION ------- Light Treads Compact Wheel > --- UTILITY ---------- High-capacity Storage Unit Hardened Light Armor Plating > --- WEAPON ----------- Spread Laser Mace > --- INVENTORY -------- Ion Engine Light Treads Light Treads Large Matter Pod Structural Scanner Sensor Array Signal Interpreter Seismic Detector Seismic Detector Hardened Light Armor Plating Hardened Light Armor Plating Hardened Light Armor Plating Hacking Suite EM Pulse Gun EM Pulse Gun Assault Rifle Light Assault Rifle Mini Grenade Launcher Mini Grenade Launcher [Rating: 12] Favorites ----------- Power Ion Engine Engine Ion Engine Propulsion Light Treads Treads Light Treads Wheel Wheel Utility High-capacity Storage Unit Device Seismic Detector Storage High-capacity Storage Unit Protection Hardened Light Armor Plating Weapon Spread Laser Energy Gun Spread Laser Ballistic Gun Assault Rifle Launcher Mini Grenade Launcher Special Weapon Mining Laser Impact Weapon Mace Build | -11 -10 -10 ------- Run | Yrd Mat Min Slots Evolved . | . . . Power . | . . . Propulsion . | . . . Utility . | . . . Weapon . | . . . Parts Attached 25 | 7 16 2 Power 1 | 1 . . Engine 1 | 1 . . Core . | . . . Reactor . | . . . Propulsion 6 | 2 4 . Treads 4 | 2 2 . Leg . | . . . Wheel 2 | . 2 . Hover . | . . . Flight . | . . . Utility 6 | 2 4 . Device 2 | 1 1 . Storage 2 | 1 1 . Processor . | . . . Hackware . | . . . Protection 2 | . 2 . Artifact . | . . . Weapon 12 | 2 8 2 Energy Gun 7 | . 5 2 Energy Cannon . | . . . Ballistic Gun 2 | 2 . . Ballistic Cannon . | . . . Launcher 1 | . 1 . Special Weapon 1 | . 1 . Impact Weapon 1 | . 1 . Slashing Weapon . | . . . Piercing Weapon . | . . . Special Melee Weapon . | . . . Unidentified Prototypes . | . . . Parts Lost 3 | . 1 2 Power . | . . . Propulsion . | . . . Utility . | . . . Weapon 3 | . 1 2 Highest Loss Streak 2 | . 1 2 To Critical Strikes . | . . . Average Backups 16 | 3 17 20 Power 1 | . 1 1 Propulsion 1 | 1 1 2 Utility 7 | . 8 10 Weapon 5 | 1 5 7 Tool/Special . | . . . Unused Backups 16 | . 6 10 Power 2 | . 1 1 Propulsion 3 | . 2 1 Utility 9 | . 2 7 Weapon 2 | . 1 1 Tool/Special . | . . . Average Slot Usage (%) 99 | . 99 100 Engine 13 | . 13 14 Treads 15 | . 16 14 Wheel 11 | . 11 14 Device 9 | . 9 5 Storage 14 | . 14 14 Protection 4 | . 4 8 Energy Gun 14 | . 14 25 Ballistic Gun 10 | . 10 1 Impact Weapon 2 | . 2 1 Peak Build Rating 12 | 7 12 12 Average Rating 10 | 5 10 11 On Entrance 6 | . 7 11 Avg Prop Armor Cover (%) 11 | . 12 9 Naked Turns . | . . . Heaviest Build 56 | 14 56 56 Greatest Support 40 | 40 40 10 Greatest Overweight (x) 5 | . 5 5 Average Overweight (x) 3 | . 3 4 Largest Inventory Capacity 20 | 8 20 20 Average Capacity 18 | 6 18 20 Most Carried 20 | 5 20 20 Average Carried 16 | 3 17 19 Final Capacity 20 | 8 20 20 Final Carried 20 | 5 20 18 Class Distribution -------------------- 100% | Mutant Dominant Class ---------------- Mutant | -10/Materials Mutant | -10/Mines Resources | -11 -10 -10 ----------- Run | Yrd Mat Min Matter Collected 801 | 204 597 . Remotely . | . . . Salvage Created 787 | 30 757 . Parts 56 | 4 52 . Haulers Intercepted 2 | . 2 . Recyclers Shooed 1 | . 1 . Parts Field Recycled . | . . . Retrieved Matter . | . . . Parts Self-Destructed . | . . . Prevented . | . . . Parts Restored . | . . . Kills | -11 -10 -10 ------- Run | Yrd Mat Min Combat Hostiles Destroyed 16 | . 16 . Guns 12 | . 12 . AOE 4 | . 4 . Classes Destroyed 9 | 1 8 . Worker 3 | . 3 . Builder 2 | . 2 . Tunneler 1 | 1 . . Hauler 2 | . 2 . Recycler 2 | . 2 . Operator 2 | . 2 . Watcher 3 | . 3 . Swarmer 6 | . 6 . Grunt 10 | . 10 . Best Kill Streak 4 | 1 4 . Combat Bots Only 3 | . 3 . Max Kills in Single Turn 3 | 1 3 . Gunslinging 1 | . 1 . Exploded 2 | . 2 . Melee . | . . . Uniques/NPCs Destroyed . | . . . Combat | -11 -10 -10 -------- Run | Yrd Mat Min Hostile Shots Fired 67 | . 53 14 Missed 17 | . 16 1 Hits 50 | . 37 13 Projectile 50 | . 37 13 AOE 15 | . . 15 Critical Strikes 1 | . 1 . Damage Taken 1054 | . 442 612 Core 263 | . 79 184 Absorbed by Shields . | . . . Regen/Repaired (Parts) 47 | . 47 . Core Remaining (%) 100 | 100 . . Volleys Fired 67 | 6 56 5 Largest 2 | 2 2 2 Hottest 130 | 40 130 80 Shots Fired 128 | 12 106 10 Gun 122 | 12 100 10 Cannon . | . . . Launcher 3 | . 3 . Special 3 | . 3 . Kinetic 54 | 12 36 6 Thermal 51 | . 51 . Explosive 3 | . 3 . Electromagnetic 20 | . 16 4 Robot Hit Streak 14 | 3 14 5 Robot Miss Streak 7 | 2 7 2 Penetration Max . | . . . Secondary Targets 2 | . 2 . Max Gunslinging Chain 1 | . 1 . Shots Hit Robots 88 | 8 74 6 Core Hits 85 | 3 79 3 Critical Kills . | . . . Critical Parts Destroyed 1 | . 1 . Critical Strikes 1 | . 1 . Smash 1 | . 1 . Melee Attacks 6 | . 6 . Impact 6 | . 6 . Slashing . | . . . Piercing . | . . . Sneak Attacks . | . . . Combat Hostiles . | . . . Follow-up Attacks . | . . . Damage Inflicted 1584 | 88 1395 101 Guns 1110 | 88 921 101 Cannons . | . . . Explosions 448 | . 448 . Melee 26 | . 26 . Ramming . | . . . Kinetic 372 | 88 227 57 Thermal 669 | . 669 . Explosive 335 | . 335 . Electromagnetic 182 | . 138 44 Impact 26 | . 26 . Slashing . | . . . Piercing . | . . . Highest Corruption . | . . . Average Corruption . | . . . Corruption Purged . | . . . Corruption Blocked . | . . . Overload Shots . | . . . Overflow Damage 80 | . 80 . Projectiles . | . . . Explosions 54 | . 54 . Melee 26 | . 26 . Knockbacks . | . . . Impact . | . . . Kinetic . | . . . Secondary . | . . . Self-Inflicted Damage 44 | . 44 . Shots 1 | . 1 . Rammed . | . . . Targets Rammed . | . . . Kicked . | . . . Crushed . | . . . Highest Temperature 378 | . 378 66 Average Temperature 93 | . 95 42 Received Heat Transfer 165 | . 165 . Effects 1 | . 1 . Damage (minor) 1 | . 1 . Siege Activations . | . . . Martial Activations . | . . . Shielding Activations . | . . . Robots Disrupted . | . . . Combat Hostiles . | . . . Robots Corrupted 1 | . 1 . Combat Hostiles . | . . . Parts Fried 1 | . 1 . Impact Corruptions 1 | . 1 . Robots Melted . | . . . Combat Hostiles . | . . . Parts Melted . | . . . Heat Transferred 850 | . 850 . Parts Sabotaged . | . . . Parts Stolen . | . . . Parts Stripped . | . . . Power Chain Reactions 1 | . 1 . Alert | -11 -10 -10 ------- Run | Yrd Mat Min Maximum Alert Level . | . . . Low Security (%) 100 | 100 100 100 Level 1 . | . . . Level 2 . | . . . Level 3 . | . . . Level 4 . | . . . Level 5 . | . . . High Security . | . . . Max Security . | . . . Peak Influence 132 | 5 132 10 Initial 10 | . . 10 Average 50 | . 57 1 Influence Increases 566 | 5 561 . Destroy 0b10 Robot/C 320 | . 320 . Destroy 0b10 Robot/NC 75 | 5 70 . Destroy Leader 70 | . 70 . Successful Hack 25 | . 25 . Disable Machine 30 | . 30 . Destroy Structure 31 | . 31 . Lose Combat Pursuer 15 | . 15 . Influence Decreases 566 | 5 532 29 Entered New Map 19 | . . 19 Time Decay 537 | 5 522 10 Lost Part 10 | . 10 . Squads Dispatched 2 | . 2 . Investigation . | . . . Extermination . | . . . Reinforcement 2 | . 2 . Assault . | . . . Garrison . | . . . Intercept . | . . . Searches Triggered . | . . . Construction Impeded . | . . . Haulers Reinforced . | . . . Active Scanning Responses . | . . . Cargo Convoy Interrupts . | . . . Stealth | -11 -10 -10 --------- Run | Yrd Mat Min Distress Signals . | . . . Communications Jammed . | . . . Distress Signals . | . . . Times Spotted 30 | . 27 3 Peak Tracking Total 3 | . 3 2 Tactical Retreats 1 | . 1 . Traps | -11 -10 -10 ------- Run | Yrd Mat Min Traps Triggered . | . . . Indirectly . | . . . Trap Hack Attempts . | . . . Triggered . | . . . Disarmed . | . . . Reprogrammed . | . . . Reused . | . . . Traps Extracted . | . . . Installed . | . . . Triggered . | . . . Machines | -11 -10 -10 ---------- Run | Yrd Mat Min Machines Disabled 2 | . 2 . Max in Single Turn 1 | . 1 . Machines Repaired . | . . . Machines Dismantled . | . . . Machines Sabotaged . | . . . Overloaded Fab Kills . | . . . Hacking | -11 -10 -10 --------- Run | Yrd Mat Min Machines Accessed 6 | . 6 . Terminals 5 | . 5 . Fabricators . | . . . Repair Stations 1 | . 1 . Recycling Units . | . . . Scanalyzers . | . . . Garrison Access . | . . . Total Hacks 20 | . 20 . Successful 14 | . 14 . Failed 6 | . 6 . Catastrophic 1 | . 1 . Database Lockouts . | . . . Manual 11 | . 11 . Terminals 14 | . 14 . Fabricators . | . . . Repair Stations 6 | . 6 . Recycling Units . | . . . Scanalyzers . | . . . Garrison Access . | . . . Terminal Hacks 4 | . 4 . Robot Analysis 2 | . 2 . Hauler Manifests 1 | . 1 . Zone Layout 1 | . 1 . Fabricator Hacks . | . . . Repair Station Hacks 4 | . 4 . Scan Component 2 | . 2 . Repair 2 | . 2 . Recycling Unit Hacks . | . . . Scanalyzer . | . . . Garrison Access Hacks . | . . . Unauthorized Hacks 6 | . 6 . Terminals 5 | . 5 . Botnet 3 | . 3 . Operators 2 | . 2 . Fabricators . | . . . Repair Stations 1 | . 1 . Mechanics 1 | . 1 . Recycling Units . | . . . Scanalyzers . | . . . Garrison Access . | . . . Data Cores Recovered . | . . . Used . | . . . Hacking Detections 6 | . 6 . Full Trace Events . | . . . Feedback Events . | . . . Feedback Blocked . | . . . Robot Schematics Acquired . | . . . Robots Built . | . . . Authchips . | . . . Time . | . . . Total Robot Build Rating . | . . . Part Schematics Acquired . | . . . Parts Built . | . . . Authchips . | . . . Time . | . . . Total Part Build Rating . | . . . Part Studies Acquired . | . . . Parts Repaired 2 | . 2 . Time 52 | . 52 . Parts Recycled . | . . . Recycled Matter . | . . . Retrieved Matter . | . . . Retrieved Components . | . . . Parts Scanalyzed . | . . . Part Schematics Acquired . | . . . Parts Damaged . | . . . Bothacking | -11 -10 -10 ------------ Run | Yrd Mat Min Used RIF Installer . | . . . Robots Hacked . | . . . Non-combat . | . . . Combat . | . . . Robot Hacks Applied . | . . . Relay Couplers Released . | . . . Fabnet Peak Effective % . | . . . Robots Rewired . | . . . Allies Hacked . | . . . Hacks Repelled . | . . . Allies | -11 -10 -10 -------- Run | Yrd Mat Min Total Allies . | . . . Largest Group . | . . . Highest-Rated Group . | . . . Highest-Rated Ally . | . . . Total Orders . | . . . Ally Attacks . | . . . Total Damage . | . . . Kills . | . . . Allies Corrupted . | . . . Allies Melted . | . . . Intel | -11 -10 -10 ------- Run | Yrd Mat Min Active Infowar (turns) 1760 | 37 1658 65 Seismic 1760 | 37 1658 65 Robot Analysis Total 2 | . 2 . Derelict Logs Recovered 1 | . . 1 Drone Launches . | . . . Drone Recoveries . | . . . Exploration | -11 -10 -10 ------------- Run | Yrd Mat Min Turns Passed 2768 | 128 2453 187 Spaces Moved 1537 | 63 1385 89 Core 5 | 5 . . Treads 222 | 58 164 . Legs . | . . . Wheels 1310 | . 1221 89 Hover . | . . . Flight . | . . . Fastest Speed 50 | 50 140 140 Average Speed 151 | 151 151 153 Slowest Speed 240 | 160 240 155 Overloaded Moves . | . . . Propulsion Burnouts . | . . . Robots Hopped . | . . . Potential Cave-ins . | . . . Cave-ins Triggered . | . . . Exploration Rate (%) 43 | 4 99 26 Regions Visited 2 Branch Regions 1 Pre-discovered Areas 1 | . . 1 Known Exits Taken . | . . . Unknown Exits Taken 2 | 1 1 . Scrap Searched . | . . . Spaces Dug 5 | . 5 . Terrain Destroyed 46 | . 46 . Melee 3 | . 3 . Projectile 3 | . 3 . AOE 40 | . 40 . Terrain Rammed . | . . . Walls Destroyed . | . . . Machines Disabled . | . . . Actions | -11 -10 -10 --------- Run | Yrd Mat Min Total 1828 | 82 1616 130 Wait 136 | 2 105 29 Move 1535 | 62 1384 89 Hop . | . . . Pick Up 30 | 5 25 . Fast Attach 9 | 7 2 . Attach 3 | . 1 2 Detach . | . . . Swap 28 | . 23 5 Drop 14 | . 14 . Fire 67 | 6 56 5 Melee 6 | . 6 . Ram . | . . . Kick . | . . . Crush . | . . . Escape Stasis . | . . . Rewire . | . . . Trap . | . . . Miscellaneous . | . . . Route ------- -11/Scrapyard -10/Materials (discovered 5 exits: [*Mat x3] / [*Min] / [*Sub]) -10/Mines History --------- Turn | Location | Event 23 | -11/Scrapyard | Discovered new exit (range 15) 129 | -11/Scrapyard | Entered Materials 309 | -10/Materials | Build established: Mutant 638 | -10/Materials | Discovered new exit (range 14) 861 | -10/Materials | Discovered new exit (range 14) 1019 | -10/Materials | Discovered new exit (range 13) 1470 | -10/Materials | Discovered new exit (range 8) 1778 | -10/Materials | Discovered new exit (range 13) 2480 | -10/Materials | Repaired Ion Engine 2507 | -10/Materials | Repaired Wheel 2582 | -10/Materials | Entered Mines 2666 | -10/Mines | Learned location of Zion (-7) 2730 | -10/Mines | Assembled infested the area 2765 | -10/Mines | Core integrity fell below 50% 2767 | -10/Mines | Core integrity fell below 20% 2769 | -10/Mines | Destroyed by D-53 Grenadier with Mini Grenade Launcher Last Messages --------------- Rating: 1 Time: 26 >>Repair Repairing Wheel... ETC: 26 02507_ Repair station completes Wheel repairs. 02507_ Acquired Wheel. LOCATION=UNKNOWN GOAL=ESCAPE Something is scanning the area. 02666_ Acquired derelict log, extracted data. World map updated: -7/Zion. 02730_ ALERT: Infestation in the mines, dispatching Demolisher response squad. 02756_ C-45 Heavy ARC bursts open, deploying its payload. 02756_ D-53 Grenadier unfolds itself. 02761_ K-01 Serf collects debris. 02761_ EM Pulse Gun destroyed. 02764_ K-01 Serf collects debris. 02768_ D-53 Grenadier misfires. Map ----- +----------------------------------------------------+ | ?????????????????????????????????????????????????? | | ?????????????????????????????????????????????????? | | ?????????????????????????????????????????????????? | | ?????????????????????????????????????????????????? | | ?????????????????????????????????????????????????? | | ?????????????????????????????????????????????????? | | ????????????????????? ??????????????????????????? | | ????????????????????? ??????????????????????????? | | ????????????????????? ??????????????????????????? | | ????????????????????# #?????????????????????????? | | ????????????????????# #?????????????????????????? | | ????????????????????# ?????????????????????????? | | ????????????????????# #?????????????????????????? | | ????????????????????# #?????????????????????????? | | ????????????????????# #???????#### ????????????? | | ????????????????????# #?????## ????????????? | | ???????????????????? #????# ???????????? | | ????????????????????#k #???? ???????????? | | ????????????????????#dd###?# ??????????? | | ????????????????????# ## ??????????? | | ???????????????????## t ??????????? | | ???????????????????# ??????????? | | ???????????????????# ??????????? | | ???????????????????# ##???????????????? | | ???????????????????# ##????????????????? | | ???????????????????# @ #?????????????????? | | ???????????????????# ##?????????????????? | | ???????????????????## #??????????????????? | | ????????????????????# #??????????????????? | | ????????????????????## #########??????????? | | ?????????????????????# #??????????? | | ?????????????????????# #??????????? | | ?????????????????????## ######### #??????????? | | ??????????????????????######???????# #??????????? | | ???????????????????????????????????# #??????????? | | ???????????????????????????????????# #??????????? | | ???????????????????????????????????# #??????????? | | ???????????????????????????????????# #??????????? | | ?????????????????????????????????### #??????????? | | ????????????????????????????????## ##?????????? | | ???????????????????????????????## #####?????? | | ???????????????????????????????# """ ##??### | | ???????????????????????????????# """ #### | | ???????????????????????????????## """ ## | | ????????????????????????????????# #### | | ????????????????????????????????## ##??## | | ?????????????????????????????????####?????# # | | ??????????????????????????????????????????## ## | | ???????????????????????????????????????????######? | | ?????????????????????????????????????????????????? | +----------------------------------------------------+ Best States ------------- Heat Dissipation 25 Energy Generation 10 Energy Capacity 250 Matter Stores 300 Matter Capacity 300 Sight Range 16 Terrain Scan Density 10 Armor Coverage 150 Evasion (%) 40 Recoil Reduction 2 Item Schematics ----------------- None Robot Schematics ------------------ None Fabricated ------------ Nothing Repaired ---------- Ion Engine | 41% | -10/Materials Wheel | 70% | -10/Materials Studied --------- None Alien Tech Used ----------------- None Achievements -------------- None Challenges ------------ None Game ------ Seed LayeredAntigravTracker Manual? 0 Play Time 00:31:35 Cumulative 176.3 hours Start 2026.02.20 @ 22:22:49 End 2026.02.21 @ 19:51:04 Sessions 10 Manual Loads 0 Difficulty Rogue Special Mode None Game No. 104 Rogue 100 Adventurer 4 Explorer 0 Win Type - Total 3 Types 2/0/0/1/0/0/0/0/0/0 Lore% 69 Gallery% 58 Achievement% 37 Wizard Run 0 Options --------- Layout 0 ASCII 0 Keyboard 1 Movement Vi Keybinds 0 Fullscreen 1 Font 24/Smallcaps Map View 76x50 Zoom Use 1% Tactical HUD 1 Map Filters NONE Filters NONE Steam 1 RUN: 6d3c8086-eefc-467a-96c0-b96aa05e17e0